Cogmind - Beta 16.1 @@@ ROGUE MODE // 2026.04.21 @ 15:43:08 Player: Thqwib-Linux Result: Heading to fleet! Performance ------------- Evolutions (9) 4500 Regions Visited (25) 5000 Robots Destroyed (182) 910 Value Destroyed (5875) 5875 Prototype IDs (29) 580 Alien Tech Used (16) 3200 Bonus (16392) 16392 TOTAL SCORE: 36457 Bonus ------- Triggered Max Security 2000 High Alert Combat Kills 1250 Follower Combat Kills 1029 Entered DSFs 500 Used Core Reset Matrix 3000 Scanned by Researcher 500 Pursued by Intercept 500 Integrated Exoskeleton 5000 Win 3000 Friendly Fire -387 Cogmind --------- Core Integrity 1592/1850 Matter 425/425 Energy 534/540 System Corruption 0% Temperature Cool (0) Movement Walking (30) +NEM 1 Location To Fleet Rendezvous Parts ------- > --- POWER (1) -------- Light Quantum Reactor > --- PROPULSION (3) --- Sigix Exoskeleton > --- UTILITY (4) ------ Advanced Targeting Computer Core Analyzer Advanced Reaction Control System > --- WEAPON (3) ------- Sigix Sheargun Sigix Sheargun Sigix Sheargun > --- INVENTORY (5) ---- (None) Peak State ------------ > --- POWER ------------ Light Quantum Reactor > --- PROPULSION ------- Sigix Exoskeleton > --- UTILITY ---------- Experimental Heat Sink Advanced Targeting Computer Core Analyzer Advanced Reaction Control System > --- WEAPON ----------- Sigix Sheargun Sigix Sheargun Sigix Sheargun > --- INVENTORY -------- (None) [Rating: 225] Favorites ----------- Power Light Nuclear Core Engine Heavy Ion Engine Power Core Light Nuclear Core Reactor Cold Fusion Reactor Propulsion Cooled VTOL Module Treads Light Treads Leg Sigix Exoskeleton Wheel Compact Wheel Flight Unit Cooled VTOL Module Utility Large Storage Unit Device Advanced Heat Sink Storage Large Storage Unit Processor Advanced Signal Interpreter Hackware Hacking Suite Protection Light Armor Plating Weapon Improved Assault Rifle Energy Gun Sigix Sheargun Energy Cannon Potential Cannon Ballistic Gun Improved Assault Rifle Launcher Rocket Launcher Slashing Weapon Power Sword Build | -11 -10 -10 -9 -9 -9 -8 -8 -7 -7 -7 -7 -6 -6 -5 -5 -5 -4 -4 -4 -3 -3 -2 -2 -2 -1 ------- Run | Yrd Mat Min Mat Min Exi Min Mat Fac Was Fac DSF Fac Ext Fac Was Fac Fac Upp Upp Res Tes Res Qua Sec Acc Slots Evolved 18 | . . . 2 . . . 2 2 . . . 2 . 2 . . 2 . . 2 . 2 . . 2 Power 1 | . . . . . . . . . . . . . . . . . 1 . . . . . . . . Propulsion 6 | . . . 1 . . . 1 1 . . . . . 1 . . 1 . . . . 1 . . . Utility 10 | . . . 1 . . . 1 1 . . . 2 . 1 . . . . . 2 . 1 . . 1 Weapon 1 | . . . . . . . . . . . . . . . . . . . . . . . . . 1 Parts Attached 156 | 3 6 . 30 4 . 5 18 13 . . 2 17 5 3 . 2 1 2 . 6 14 4 3 12 6 Power 20 | . 1 . 4 1 . 1 3 . . . 1 2 . . . . 1 . . 1 2 . . 2 1 Engine 6 | . 1 . 3 . . . 1 . . . . 1 . . . . . . . . . . . . . Core 7 | . . . 1 1 . 1 2 . . . 1 . . . . . 1 . . . . . . . . Reactor 7 | . . . . . . . . . . . . 1 . . . . . . . 1 2 . . 2 1 Propulsion 46 | 2 1 . 14 1 . 1 6 4 . . . 5 . 1 . 1 . 1 . 1 4 . 1 3 . Treads 17 | 1 . . 11 1 . . 4 . . . . . . . . . . . . . . . . . . Leg . | . . . . . . . . . . . . . . . . . . . . . . . . . . Wheel 7 | 1 1 . 2 . . 1 2 . . . . . . . . . . . . . . . . . . Hover . | . . . . . . . . . . . . . . . . . . . . . . . . . . Flight 22 | . . . 1 . . . . 4 . . . 5 . 1 . 1 . 1 . 1 4 . 1 3 . Utility 58 | 1 3 . 7 2 . 1 5 6 . . . 9 4 2 . . . . . 4 2 3 1 3 5 Device 17 | 1 . . . . . . 2 1 . . . 3 . . . . . . . 3 1 . 1 3 2 Storage 6 | . 2 . 2 . . . 1 . . . . . . . . . . . . . 1 . . . . Processor 11 | . . . 1 . . . . 1 . . . 2 2 1 . . . . . . . 1 . . 3 Hackware 9 | . . . . . . . . 2 . . . 3 . 1 . . . . . 1 . 2 . . . Protection 15 | . 1 . 4 2 . 1 2 2 . . . 1 2 . . . . . . . . . . . . Artifact . | . . . . . . . . . . . . . . . . . . . . . . . . . . Weapon 32 | . 1 . 5 . . 2 4 3 . . 1 1 1 . . 1 . 1 . . 6 1 1 4 . Energy Gun 4 | . 1 . . . . . . . . . . . . . . . . . . . . . . 3 . Energy Cannon 3 | . . . . . . . . . . . . . . . . . . . . . 2 . 1 . . Ballistic Gun 17 | . . . 5 . . 1 2 2 . . . . 1 . . 1 . . . . 3 1 . 1 . Ballistic Cannon . | . . . . . . . . . . . . . . . . . . . . . . . . . . Launcher 4 | . . . . . . 1 . 1 . . . . . . . . . 1 . . 1 . . . . Special Weapon . | . . . . . . . . . . . . . . . . . . . . . . . . . . Impact Weapon . | . . . . . . . . . . . . . . . . . . . . . . . . . . Slashing Weapon 4 | . . . . . . . 2 . . . 1 1 . . . . . . . . . . . . . Piercing Weapon . | . . . . . . . . . . . . . . . . . . . . . . . . . . Special Melee Weapon . | . . . . . . . . . . . . . . . . . . . . . . . . . . Unidentified Prototypes 16 | . . . 3 . . . . . . . . 1 1 . . . . . . . 6 . 1 4 . Parts Lost 18 | . . . 3 . . 3 3 . . . . 1 3 . . . . . . . 1 . 2 2 . Power 2 | . . . . . . . 1 . . . . . . . . . . . . . . . . 1 . Propulsion 8 | . . . 2 . . 2 1 . . . . . 1 . . . . . . . 1 . 1 . . Utility 7 | . . . . . . 1 1 . . . . 1 2 . . . . . . . . . 1 1 . Weapon 1 | . . . 1 . . . . . . . . . . . . . . . . . . . . . . Highest Loss Streak 2 | . . . 2 . . 1 2 . . . . 1 1 . . . . . . . 1 . 2 2 . To Critical Strikes . | . . . . . . . . . . . . . . . . . . . . . . . . . . Average Backups 8 | 3 5 7 13 15 15 15 14 11 5 5 4 4 4 4 5 5 4 5 5 4 4 4 4 4 . Power . | 1 1 1 1 1 1 1 1 1 1 1 . . . . 1 1 . . . . . . . . . Propulsion 2 | 2 2 2 3 5 5 5 5 2 . . . . . . . . . . . . . . . . . Utility 2 | . 2 3 3 4 4 4 3 2 1 1 1 1 1 1 1 1 1 2 2 1 2 2 2 . . Weapon 3 | . . 1 4 5 5 5 5 4 3 3 3 2 3 3 3 3 3 3 3 3 2 2 1 1 . Tool/Special . | . . . . . . . . . . . . . . . . . . . . . . . . . . Unused Backups 35 | 9 2 . 11 1 . 2 4 . . . 1 . 2 1 . 1 . . . . 1 . . . . Power 6 | 1 . . 4 . . . . . . . . . . 1 . . . . . . . . . . . Propulsion 8 | 4 2 . 2 . . . . . . . . . . . . . . . . . . . . . . Utility 6 | 1 . . . . . 1 1 . . . 1 . 2 . . . . . . . . . . . . Weapon 15 | 3 . . 5 1 . 1 3 . . . . . . . . 1 . . . . 1 . . . . Tool/Special . | . . . . . . . . . . . . . . . . . . . . . . . . . . Average Slot Usage (%) 92 | . 99 100 99 100 100 96 93 88 100 100 100 93 96 87 94 94 89 91 94 94 93 90 87 68 58 Engine 3 | . 14 14 8 5 . . . . . . . . . . . . . . . . . . . . . Core 2 | . . . 2 5 11 11 8 7 7 7 7 1 . . . . 5 5 5 . . . . . . Reactor 2 | . . . . . . . . . . . . 4 6 5 5 5 5 5 5 8 8 8 8 5 3 Treads 10 | . 14 14 22 22 22 20 19 8 . . . . . . . . . . . . . . . . . Wheel 6 | . 14 14 10 11 11 10 11 3 . . . . . . . . . . . . . . . . . Flight 10 | . . . . . . . . 15 38 38 38 33 31 27 29 29 26 28 31 28 27 26 23 8 . Device 5 | . . . . . . . 1 7 7 7 7 6 5 11 11 11 10 10 10 18 18 17 15 18 10 Storage 6 | . 14 14 11 11 11 11 9 4 . . . . . . . . . . . . . . . . . Processor 9 | . . . 10 11 11 . . 2 7 7 7 6 23 23 23 23 21 21 21 17 14 16 13 4 9 Hackware 5 | . . . . . . . . 8 15 15 15 19 11 5 11 11 10 10 10 10 14 13 17 5 . Protection 8 | . 13 14 10 11 11 20 24 11 7 7 7 6 3 . . . . . . . . . . 1 . Energy Gun 3 | . 14 14 1 . . . . . . . . . . . . . . . . . . . . 14 27 Ballistic Gun 12 | . 14 14 20 22 22 21 17 13 15 15 10 7 6 5 5 5 5 5 5 4 4 4 4 1 . Slashing Weapon 1 | . . . . . . . . . . . 4 4 5 5 5 5 5 5 5 4 3 4 4 1 . Peak Build Rating 225 | 7 7 7 20 19 19 19 34 40 39 39 40 67 66 73 73 82 87 92 92 113 126 132 142 212 225 Average Rating 58 | 6 6 7 15 17 19 18 26 37 39 39 39 55 63 66 73 78 87 89 92 108 119 130 134 183 209 On Entrance 61 | 6 7 7 7 17 19 19 17 34 38 39 39 40 65 57 73 73 82 87 92 92 113 125 128 135 192 Avg Prop Armor Cover (%) 11 | 3 7 10 14 14 15 14 14 4 1 1 2 . 2 . . . . . . . 3 . . . . Naked Turns . | . . . . . . . . . . . . . . . . . . . . . . . . . . Heaviest Build 49 | 12 31 31 39 36 36 38 42 40 17 17 17 24 25 20 20 23 30 33 30 39 49 37 44 45 39 Greatest Support 62 | 20 20 16 60 20 16 20 28 28 20 20 25 25 35 34 34 41 33 47 39 49 50 50 59 62 60 Greatest Overweight (x) 4 | . 1 1 2 2 2 3 4 1 . . 1 . 1 . . . . . . . 1 . . 1 . Average Overweight (x) . | . . 1 1 1 2 2 1 . . . . . . . . . . . . . . . . . . Largest Inventory Capacity 15 | 8 15 15 15 15 15 15 15 15 5 5 5 5 5 5 5 5 5 5 5 5 5 5 5 5 5 Average Capacity 10 | 8 13 15 15 15 15 15 15 11 5 5 5 5 5 5 5 5 5 5 5 5 5 5 5 5 5 Most Carried 15 | 6 9 7 15 15 15 15 15 15 5 5 5 5 5 5 5 5 5 5 5 5 5 5 5 5 1 Average Carried 8 | 3 5 7 13 15 15 14 14 10 5 5 4 4 4 4 5 5 4 5 5 4 4 4 4 4 . Final Capacity 15 | 8 15 15 15 15 15 15 15 5 5 5 5 5 5 5 5 5 5 5 5 5 5 5 5 5 5 Final Carried 15 | 3 7 7 15 15 15 15 15 5 5 5 5 5 5 5 5 5 5 5 5 5 5 5 4 1 . Class Distribution -------------------- 33% | Scavenger-Mutant 22% | Mutant 18% | Hacker-Sprinter 8% | Alien-Sigix 6% | Hacker-Ninja 4% | Commander-Sprinter 3% | Sprinter Dominant Class ---------------- Mutant | -10/Materials Mutant | -10/Mines Scavenger-Mutant | -9/Materials Scavenger-Mutant | -9/Mines Scavenger-Mutant | -9/Exiles Scavenger-Mutant | -8/Mines Scavenger-Mutant | -8/Materials Scavenger-Mutant | -7/Factory Hacker-Sprinter | -7/Waste Hacker-Sprinter | -7/Factory Hacker-Sprinter | -7/DSF Hacker-Sprinter | -6/Factory Commander-Sprinter | -6/Extension Sprinter | -5/Factory Hacker-Sprinter | -5/Waste Hacker-Sprinter | -5/Factory Hacker-Sprinter | -4/Factory Hacker-Sprinter | -4/Upper Caves Hacker-Sprinter | -4/Upper Caves Hacker-Sprinter | -3/Research Hacker-Sprinter | -3/Testing Hacker-Ninja | -2/Research Hacker-Ninja | -2/Quarantine Alien-Sigix | -2/Section 7 Alien-Sigix | -1/Access Resources | -11 -10 -10 -9 -9 -9 -8 -8 -7 -7 -7 -7 -6 -6 -5 -5 -5 -4 -4 -4 -3 -3 -2 -2 -2 -1 ----------- Run | Yrd Mat Min Mat Min Exi Min Mat Fac Was Fac DSF Fac Ext Fac Was Fac Fac Upp Upp Res Tes Res Qua Sec Acc Matter Collected 4500 | 281 215 14 876 131 . 190 675 96 . 169 . 129 458 40 . 30 . 62 . 47 278 19 33 624 133 Remotely . | . . . . . . . . . . . . . . . . . . . . . . . . . . Salvage Created 7591 | 201 480 53 1582 268 . 225 732 120 . . . 298 719 124 . 141 . 62 . 43 313 19 33 1198 980 Parts 473 | 21 37 3 120 22 . 22 52 6 . . . 12 23 6 . 5 . 2 . 4 22 . . 62 54 Haulers Intercepted 16 | . 2 . 5 . . . 2 . . . . 2 1 1 . 1 . . . . . . . . 2 Recyclers Shooed 4 | 1 . . 1 . . . . . . . . 2 . . . . . . . . . . . . . Parts Field Recycled . | . . . . . . . . . . . . . . . . . . . . . . . . . . Retrieved Matter . | . . . . . . . . . . . . . . . . . . . . . . . . . . Parts Self-Destructed 1 | . . . . . . . . . . . . . . . . . . 1 . . . . . . . Prevented . | . . . . . . . . . . . . . . . . . . . . . . . . . . Parts Restored . | . . . . . . . . . . . . . . . . . . . . . . . . . . Kills | -11 -10 -10 -9 -9 -9 -8 -8 -7 -7 -7 -7 -6 -6 -5 -5 -5 -4 -4 -4 -3 -3 -2 -2 -2 -1 ------- Run | Yrd Mat Min Mat Min Exi Min Mat Fac Was Fac DSF Fac Ext Fac Was Fac Fac Upp Upp Res Tes Res Qua Sec Acc Combat Hostiles Destroyed 122 | . 14 3 33 7 . 10 14 4 . . . 2 10 . . . . . . . 4 . . 11 10 Melee 9 | . . . . . . . . . . . . . 9 . . . . . . . . . . . . Guns 107 | . 14 3 33 7 . 7 14 1 . . . 2 1 . . . . . . . 4 . . 11 10 AOE 6 | . . . . . . 3 . 3 . . . . . . . . . . . . . . . . . Classes Destroyed 15 | 3 5 . 2 . . 2 . . . . . 1 . . . . . . . . . . . 1 1 Worker 12 | 2 . . . 1 . 1 1 . . . . . . 2 . . . . . 1 . 1 . 2 1 Builder 4 | . 1 . 2 . . . . . . . . . . . . . . . . . . . . 1 . Tunneler 6 | 5 . . . . . 1 . . . . . . . . . . . . . . . . . . . Hauler 16 | . 2 . 5 . . . 2 . . . . 2 1 1 . 1 . . . . . . . . 2 Recycler 4 | 1 . . 1 . . . . . . . . . . . . . . . . . 1 . . . 1 Operator 2 | . 1 . . . . . . 1 . . . . . . . . . . . . . . . . . Watcher 12 | . . . 2 . . . 1 . . . . 1 1 . . 1 . . . 1 2 . 1 2 . Swarmer 51 | . 9 3 14 3 . 7 4 3 . . . 1 . . . . . . . . 4 . . 3 . Cutter 4 | . . . . . . . . . . . . . . . . . . . . . . . . . 4 Grunt 34 | . 5 . 10 2 . 1 5 . . . . . 9 . . . . . . . . . . 1 1 Duelist 1 | . . . . . . 1 . . . . . . . . . . . . . . . . . . . Researcher 2 | . . . . . . . . . . . . . . . . . . . . . . . . 2 . Sentry 20 | . . . 9 2 . . 5 1 . . . . 1 . . . . . . . . . . 2 . Hunter 4 | . . . . . . 1 . . . . . . . . . . . . . . . . . 1 2 Programmer 5 | . . . . . . . . . . . . 1 . . . . . . . . . . . 1 3 Tracker 3 | . . . . . . . . . . . . . . . . . . . . . . . . 3 . Investigator 2 | . . . . . . . . . . . . . . . . . . . . . . . . 2 . Best Kill Streak 8 | 4 3 3 6 3 . 5 5 3 . . . 2 2 2 . 2 . . . 1 3 1 1 6 8 Combat Bots Only 6 | . 3 3 6 3 . 4 5 3 . . . 1 2 . . . . . . . 3 . . 3 4 Max Kills in Single Turn 3 | 1 2 1 2 2 . 3 1 3 . . . 1 1 1 . 1 . . . 1 1 1 1 2 2 Gunslinging 1 | . 1 . . 1 . 1 . . . . . . . . . . . . . . . . . 1 1 Exploded 3 | . . . . . . 2 . 3 . . . . . . . . . . . . . . . . . Melee 1 | . . . . . . . . . . . . . 1 . . . . . . . . . . . . Uniques/NPCs Destroyed . | . . . . . . . . . . . . . . . . . . . . . . . . . . Combat | -11 -10 -10 -9 -9 -9 -8 -8 -7 -7 -7 -7 -6 -6 -5 -5 -5 -4 -4 -4 -3 -3 -2 -2 -2 -1 -------- Run | Yrd Mat Min Mat Min Exi Min Mat Fac Was Fac DSF Fac Ext Fac Was Fac Fac Upp Upp Res Tes Res Qua Sec Acc Hostile Shots Fired 1415 | . 46 28 133 31 . 68 68 14 . . 7 16 45 5 . 1 . 4 . 6 19 11 14 738 161 Missed 593 | . 6 4 42 6 . 16 13 6 . . 3 4 14 4 . 1 . 3 . 4 8 7 4 370 78 Hits 822 | . 40 24 91 25 . 52 55 8 . . 4 12 31 1 . . . 1 . 2 11 4 10 368 83 Melee 22 | . . . . . . 4 . . . . . . 1 . . . . . . . . . . 10 7 Projectile 800 | . 40 24 91 25 . 48 55 8 . . 4 12 30 1 . . . 1 . 2 11 4 10 358 76 AOE 3 | . . . . . . . . . . . . . . . . . . . . . . . . 2 1 Critical Strikes 42 | . . . 3 . . 2 1 . . . . . 3 . . . . . . . 1 1 1 21 9 Damage Taken 9097 | . 389 195 1104 315 . 627 715 88 . . 101 208 426 21 . . . 25 . 39 249 87 194 3446 868 Core 1920 | . 56 27 127 66 . 113 62 30 . . 46 58 4 . . . . . . . 24 . 49 1000 258 Absorbed by Shields 907 | . . . . . . . . . . . . . 51 . . . . . . . . . . 856 . Redirected to Shielding 29 | . . . . . . 18 11 . . . . . . . . . . . . . . . . . . Ignored by Resistances 4724 | . . . . . . . . . . . . . . . . . . . . . . . . 3820 904 Regen/Repaired (Parts) 909 | . 61 . 271 . . . 169 . . . . 42 51 . . 26 . . . . 20 27 14 228 . Core Remaining (%) 80 | 100 . 66 . . . 23 88 . . . 89 . 92 . . 100 . . 100 . 98 . . 47 86 Volleys Fired 410 | 17 47 11 89 18 . 26 50 11 . . . 11 11 . . . . 2 . . 11 . . 68 38 Largest 3 | 2 2 2 2 2 . 2 2 2 . . . 2 2 . . . . 1 . . 2 . . 2 3 Hottest 300 | 60 60 60 63 46 . 48 50 50 . . . 50 55 . . . . 36 . . 76 . . 200 300 Shots Fired 841 | 34 94 22 176 35 . 48 100 20 . . . 22 20 . . . . 2 . . 22 . . 134 112 Gun 833 | 34 94 22 176 35 . 44 100 18 . . . 22 20 . . . . . . . 22 . . 134 112 Cannon . | . . . . . . . . . . . . . . . . . . . . . . . . . . Launcher 8 | . . . . . . 4 . 2 . . . . . . . . . 2 . . . . . . . Special . | . . . . . . . . . . . . . . . . . . . . . . . . . . Kinetic 523 | 17 47 11 167 35 . 44 100 18 . . . 22 20 . . . . . . . 22 . . 20 . Thermal 84 | 17 47 11 9 . . . . . . . . . . . . . . . . . . . . . . Explosive 8 | . . . . . . 4 . 2 . . . . . . . . . 2 . . . . . . . Electromagnetic . | . . . . . . . . . . . . . . . . . . . . . . . . . . Slashing 226 | . . . . . . . . . . . . . . . . . . . . . . . . 114 112 Robot Hit Streak 26 | 5 12 4 26 21 . 24 8 4 . . . 3 8 . . . . . . . 9 . . 9 10 Robot Miss Streak 7 | 2 4 3 3 2 . 3 4 3 . . . 4 2 . . . . . . . 7 . . 5 4 Penetration Max 1 | . . . . . . . . . . . . . . . . . . . . . 1 . . 1 1 Secondary Targets 15 | . 2 . 3 1 . 2 2 . . . . . . . . . . . . . . . . 1 4 Max Gunslinging Chain 2 | . 1 . 1 1 . 1 1 . . . . . . . . . . . . . . . . 1 2 Shots Hit Robots 584 | 22 59 11 130 29 . 34 64 11 . . . 21 49 7 . 3 2 2 . 2 12 2 3 66 55 Core Hits 267 | 9 27 3 57 13 . 18 29 10 . . . 8 17 3 . 2 . 1 . . 10 1 1 38 20 Critical Kills 11 | . . . 1 . . . 1 . . . . . . . . . . . . . . . . 9 . Critical Parts Destroyed 11 | . . . . . . 2 . . . . . . 1 . . . . . . . . . . 8 . Critical Strikes 37 | . . . 1 . . 2 1 . . . . 2 7 1 . . 1 . . . . . . 20 2 Destroy 22 | . . . 1 . . 2 1 . . . . . 1 . . . . . . . . . . 17 . Sever 15 | . . . . . . . . . . . . 2 6 1 . . 1 . . . . . . 3 2 Melee Attacks 176 | . . . . . . . 3 1 . . 3 25 41 13 . 4 3 3 . 8 28 18 13 13 . Impact . | . . . . . . . . . . . . . . . . . . . . . . . . . . Slashing 176 | . . . . . . . 3 1 . . 3 25 41 13 . 4 3 3 . 8 28 18 13 13 . Piercing . | . . . . . . . . . . . . . . . . . . . . . . . . . . Sneak Attacks 19 | . . . . . . . . . . . . 2 4 5 . 2 . . . 2 2 1 . 1 . Combat Hostiles 1 | . . . . . . . . . . . . . 1 . . . . . . . . . . . . Follow-up Attacks . | . . . . . . . . . . . . . . . . . . . . . . . . . . Damage Inflicted 18963 | 257 779 148 2045 450 . 852 1192 371 . . . 686 1990 554 . 243 100 202 . 202 591 167 159 4295 3680 Guns 13654 | 257 779 148 2041 450 . 485 1192 156 . . . 164 308 . . . . . . . 238 . . 4014 3422 Cannons . | . . . . . . . . . . . . . . . . . . . . . . . . . . Explosions 840 | . . . . . . 367 . 215 . . . . . . . . . . . . . . . . 258 Melee 4319 | . . . . . . . . . . . . 522 1682 554 . 243 100 202 . 202 353 167 159 135 . Ramming 150 | . . . 4 . . . . . . . . . . . . . . . . . . . . 146 . Kinetic 5761 | 107 449 76 1952 450 . 485 1192 156 . . . 164 308 . . . . . . . 238 . . 184 . Thermal 825 | 150 330 72 89 . . . . . . . . . . . . . . . . . . . . . 184 Explosive 582 | . . . . . . 367 . 215 . . . . . . . . . . . . . . . . . Electromagnetic 74 | . . . . . . . . . . . . . . . . . . . . . . . . . 74 Impact . | . . . . . . . . . . . . . . . . . . . . . . . . . . Slashing 11571 | . . . . . . . . . . . . 522 1682 554 . 243 100 202 . 202 353 167 159 3965 3422 Piercing . | . . . . . . . . . . . . . . . . . . . . . . . . . . Highest Corruption 5 | . 2 2 . . . . 5 . . . . 1 1 . . . . . . . . 2 2 3 . Average Corruption 1 | . 1 2 . . . . 2 . . . . 1 1 . . . . . . . . 2 2 2 . Corruption Purged . | . . . . . . . . . . . . . . . . . . . . . . . . . . Corruption Blocked . | . . . . . . . . . . . . . . . . . . . . . . . . . . Effects 16 | . 2 1 . . . . 3 . . . . . 7 . . . . . . . . . 3 . . Message Errors 3 | . . 1 . . . . . . . . . . 1 . . . . . . . . . 1 . . Matter Fused 3 | . . . . . . . 2 . . . . . 1 . . . . . . . . . . . . Heat Flow Errors 2 | . . . . . . . 1 . . . . . 1 . . . . . . . . . . . . Energy Discharges 1 | . . . . . . . . . . . . . 1 . . . . . . . . . . . . Data Loss (minor) 2 | . 1 . . . . . . . . . . . 1 . . . . . . . . . . . . Data Loss (major) 4 | . 1 . . . . . . . . . . . 2 . . . . . . . . . 1 . . Alerts 1 | . . . . . . . . . . . . . . . . . . . . . . . 1 . . Overload Shots . | . . . . . . . . . . . . . . . . . . . . . . . . . . Overflow Damage 284 | . . . . . . . . 2 . . . 22 7 86 . . . 48 . 107 . . 9 . 3 Projectiles . | . . . . . . . . . . . . . . . . . . . . . . . . . . Explosions 5 | . . . . . . . . 2 . . . . . . . . . . . . . . . . 3 Melee 279 | . . . . . . . . . . . . 22 7 86 . . . 48 . 107 . . 9 . . Knockbacks 1 | . . . . . . . . . . . . . . . . . . . . . . . . 1 . Impact 1 | . . . . . . . . . . . . . . . . . . . . . . . . 1 . Kinetic . | . . . . . . . . . . . . . . . . . . . . . . . . . . Secondary . | . . . . . . . . . . . . . . . . . . . . . . . . . . Self-Inflicted Damage 12 | . . . 2 . . . . 7 . . . . . . . . . . . . . . . . 3 Shots 2 | . . . . . . . . 1 . . . . . . . . . . . . . . . . 1 Rammed 1 | . . . 1 . . . . . . . . . . . . . . . . . . . . . . Targets Rammed 5 | . . . 1 . . . . . . . . . . . . . . . . . . . . 4 . Kicked 4 | . . . . . . . . . . . . . . . . . . . . . . . . 4 . Crushed . | . . . . . . . . . . . . . . . . . . . . . . . . . . Highest Temperature 350 | . 102 72 31 12 . 32 350 50 . . . . 184 120 185 107 . 311 . 109 249 299 18 18 . Average Temperature 39 | . 22 41 9 5 . 13 62 30 . . . . 40 55 98 83 . 154 . 90 73 96 12 11 . Received Heat Transfer 1687 | . 93 . 282 99 . 99 261 18 . . . . 144 . . . . 9 . . . 45 . 601 36 Siege Activations . | . . . . . . . . . . . . . . . . . . . . . . . . . . Martial Activations . | . . . . . . . . . . . . . . . . . . . . . . . . . . Shielding Activations . | . . . . . . . . . . . . . . . . . . . . . . . . . . Robots Disrupted . | . . . . . . . . . . . . . . . . . . . . . . . . . . Combat Hostiles . | . . . . . . . . . . . . . . . . . . . . . . . . . . Robots Corrupted . | . . . . . . . . . . . . . . . . . . . . . . . . . . Combat Hostiles . | . . . . . . . . . . . . . . . . . . . . . . . . . . Parts Fried . | . . . . . . . . . . . . . . . . . . . . . . . . . . Impact Corruptions . | . . . . . . . . . . . . . . . . . . . . . . . . . . Robots Melted . | . . . . . . . . . . . . . . . . . . . . . . . . . . Combat Hostiles . | . . . . . . . . . . . . . . . . . . . . . . . . . . Parts Melted 4 | 1 2 1 . . . . . . . . . . . . . . . . . . . . . . . Heat Transferred 1500 | 350 700 150 200 . . . . . . . . . . . . . . . . . . . . . 100 Parts Sabotaged . | . . . . . . . . . . . . . . . . . . . . . . . . . . Parts Stolen . | . . . . . . . . . . . . . . . . . . . . . . . . . . Parts Stripped . | . . . . . . . . . . . . . . . . . . . . . . . . . . Power Chain Reactions . | . . . . . . . . . . . . . . . . . . . . . . . . . . Alert | -11 -10 -10 -9 -9 -9 -8 -8 -7 -7 -7 -7 -6 -6 -5 -5 -5 -4 -4 -4 -3 -3 -2 -2 -2 -1 ------- Run | Yrd Mat Min Mat Min Exi Min Mat Fac Was Fac DSF Fac Ext Fac Was Fac Fac Upp Upp Res Tes Res Qua Sec Acc Maximum Alert Level 5 | . . . 1 . . . 1 1 . . . . 2 1 . . . . . . . . . 5 5 Low Security (%) 76 | 100 100 100 44 100 . 100 86 97 100 100 100 100 88 74 100 100 100 . . 100 100 100 100 33 . Level 1 14 | . . . 55 . . . 13 2 . . . . 8 25 . . . . . . . . . 1 . Level 2 . | . . . . . . . . . . . . . 2 . . . . . . . . . . . . Level 3 . | . . . . . . . . . . . . . . . . . . . . . . . . . . Level 4 . | . . . . . . . . . . . . . . . . . . . . . . . . . 22 Level 5 . | . . . . . . . . . . . . . . . . . . . . . . . . . . High Security . | . . . . . . . . . . . . . . . . . . . . . . . . . . Max Security 8 | . . . . . . . . . . . . . . . . . . . . . . . . 64 77 Peak Influence 2359 | 10 168 111 273 171 . 141 300 238 83 61 40 40 452 235 73 60 39 . . 62 157 35 106 2359 2192 Initial 1412 | . . 51 39 101 . . 51 133 83 37 38 21 . 208 73 51 27 . . . 29 . 19 41 1412 Average 261 | 2 54 87 187 80 . 39 64 107 69 51 38 9 95 165 73 53 33 . . 9 92 9 72 1341 1810 Influence Increases 7114 | 40 402 70 1007 327 . 342 542 205 . 28 2 168 1181 172 . 26 14 5 . 83 346 125 155 1236 638 Destroy 0b10 Robot/C 3060 | . 280 60 660 240 . 200 280 80 . . . 40 620 . . . . . . . 80 . . 300 220 Destroy 0b10 Robot/NC 295 | 40 20 . 50 5 . 10 20 5 . . . 15 20 15 . 10 . 5 . 10 15 5 5 25 20 Destroy Leader 636 | . 54 10 184 30 . 40 86 20 . . . 16 54 2 . 4 . . . 2 14 . 2 74 44 Allied During Kill 278 | . . . . 6 . . . . . . . . 251 . . . . . . . . . . . 21 Successful Hack 347 | . 18 . 46 . . . 3 . . 28 . 28 54 10 . 10 12 . . 18 53 . 55 12 . Select Force Hacks 60 | . 30 . 30 . . . . . . . . . . . . . . . . . . . . . . Disable Machine 555 | . . . 15 . . . 30 . . . . 15 45 15 . . . . . 15 75 . 30 240 75 Destroy Structure 698 | . . . 7 1 . 17 3 10 . . 2 9 17 10 . 2 2 . . 8 34 45 18 255 258 Partial Spotted 330 | . . . . . . . . 15 . . . . 105 15 . . . . . . 30 30 45 90 . Lose Combat Pursuer 855 | . . . 15 45 . 75 120 75 . . . 45 15 105 . . . . . 30 45 45 . 240 . Influence Decreases 6448 | 40 270 101 847 552 36 209 381 261 185 26 17 208 755 388 137 42 40 36 . 31 398 90 116 310 972 Entered New Map 2223 | . . 81 62 160 36 . 82 161 155 16 17 19 . 218 137 22 30 13 . . 23 . 16 33 942 Time Decay 3266 | 40 270 20 615 392 . 189 269 100 30 10 . 179 408 90 . 20 10 23 . 31 220 80 80 160 30 Lost Part 160 | . . . 20 . . 20 30 . . . . 10 30 . . . . . . . 10 . 20 20 . Lost Ally 407 | . . . . . . . . . . . . . 317 80 . . . . . . . 10 . . . Purge Threat 392 | . . . 150 . . . . . . . . . . . . . . . . . 145 . . 97 . Squads Dispatched 86 | . 3 . 3 . . . 3 3 . . 1 2 . . . 1 1 . . 1 1 5 1 38 23 Investigation 7 | . 1 . 2 . . . . . . . . . . . . 1 1 . . . . 2 . . . Extermination 6 | . . . . . . . . . . . . 2 . . . . . . . . 1 2 . 1 . Reinforcement 18 | . 2 . 1 . . . 3 2 . . 1 . . . . . . . . 1 . 1 1 4 2 Assault 51 | . . . . . . . . . . . . . . . . . . . . . . . . 30 21 Garrison 1 | . . . . . . . . 1 . . . . . . . . . . . . . . . . . Intercept 3 | . . . . . . . . . . . . . . . . . . . . . . . . 3 . Searches Triggered . | . . . . . . . . . . . . . . . . . . . . . . . . . . Construction Impeded 1 | . . . . . . . 1 . . . . . . . . . . . . . . . . . . Haulers Reinforced . | . . . . . . . . . . . . . . . . . . . . . . . . . . Active Scanning Responses . | . . . . . . . . . . . . . . . . . . . . . . . . . . Cargo Convoy Interrupts . | . . . . . . . . . . . . . . . . . . . . . . . . . . Stealth | -11 -10 -10 -9 -9 -9 -8 -8 -7 -7 -7 -7 -6 -6 -5 -5 -5 -4 -4 -4 -3 -3 -2 -2 -2 -1 --------- Run | Yrd Mat Min Mat Min Exi Min Mat Fac Was Fac DSF Fac Ext Fac Was Fac Fac Upp Upp Res Tes Res Qua Sec Acc Distress Signals 18 | . 2 . 4 . . . 2 . . . . 1 2 1 . . . . . . . 2 . 4 . Communications Jammed 10 | . . . . . . . . . . . . . . . . . . . . . 3 7 . . . Distress Signals 10 | . . . . . . . . . . . . . . . . . . . . . 3 7 . . . Times Spotted 554 | . 29 3 50 14 . 14 30 10 6 . 3 4 36 6 5 2 1 4 . 7 14 14 8 268 26 Peak Tracking Total 63 | . 6 3 6 3 . 4 8 5 6 . 3 5 6 7 5 3 1 7 . 4 3 8 4 63 8 Tactical Retreats 30 | . . . 1 2 . 2 2 2 . . . 2 1 2 . . . . . 1 1 2 2 10 . ECM-based Alert Blocks 3 | . . . . . . . . . . . . . . . . . . . . . . . 2 1 . Traps | -11 -10 -10 -9 -9 -9 -8 -8 -7 -7 -7 -7 -6 -6 -5 -5 -5 -4 -4 -4 -3 -3 -2 -2 -2 -1 ------- Run | Yrd Mat Min Mat Min Exi Min Mat Fac Was Fac DSF Fac Ext Fac Was Fac Fac Upp Upp Res Tes Res Qua Sec Acc Traps Triggered 19 | . 2 . 1 . . . 3 1 . . . 1 6 1 . . . . . . 1 1 . 1 1 Indirectly . | . . . . . . . . . . . . . . . . . . . . . . . . . . Trap Hack Attempts . | . . . . . . . . . . . . . . . . . . . . . . . . . . Triggered . | . . . . . . . . . . . . . . . . . . . . . . . . . . Disarmed . | . . . . . . . . . . . . . . . . . . . . . . . . . . Reprogrammed . | . . . . . . . . . . . . . . . . . . . . . . . . . . Reused . | . . . . . . . . . . . . . . . . . . . . . . . . . . Traps Extracted . | . . . . . . . . . . . . . . . . . . . . . . . . . . Installed . | . . . . . . . . . . . . . . . . . . . . . . . . . . Triggered . | . . . . . . . . . . . . . . . . . . . . . . . . . . Machines | -11 -10 -10 -9 -9 -9 -8 -8 -7 -7 -7 -7 -6 -6 -5 -5 -5 -4 -4 -4 -3 -3 -2 -2 -2 -1 ---------- Run | Yrd Mat Min Mat Min Exi Min Mat Fac Was Fac DSF Fac Ext Fac Was Fac Fac Upp Upp Res Tes Res Qua Sec Acc Machines Disabled 38 | . . . 1 . . . 2 . . . . 1 3 1 . . . . . 1 5 . 2 17 5 Max in Single Turn 2 | . . . 1 . . . 1 . . . . 1 . . . . . . . 1 1 . 1 2 1 Garrison Access 3 | . . . . . . . . . . . . . . . . . . . . 1 1 . 1 . . Energy Cycler 2 | . . . . . . . . . . . . . 1 . . . . . . . . . . . 1 Machines Repaired . | . . . . . . . . . . . . . . . . . . . . . . . . . . Machines Dismantled . | . . . . . . . . . . . . . . . . . . . . . . . . . . Machines Sabotaged . | . . . . . . . . . . . . . . . . . . . . . . . . . . Overloaded Fab Kills . | . . . . . . . . . . . . . . . . . . . . . . . . . . Hacking | -11 -10 -10 -9 -9 -9 -8 -8 -7 -7 -7 -7 -6 -6 -5 -5 -5 -4 -4 -4 -3 -3 -2 -2 -2 -1 --------- Run | Yrd Mat Min Mat Min Exi Min Mat Fac Was Fac DSF Fac Ext Fac Was Fac Fac Upp Upp Res Tes Res Qua Sec Acc Machines Accessed 91 | . 6 . 12 . 1 . 4 2 . 2 . 8 10 1 . 3 1 . . 4 13 3 8 13 . Terminals 64 | . 4 . 8 . . . 3 2 . 2 . 5 9 . . . 1 . . 2 9 2 6 11 . Fabricators 3 | . . . . . . . . . . . . 1 . . . 1 . . . . 1 . . . . Repair Stations 13 | . 1 . 2 . . . 1 . . . . 2 1 1 . 2 . . . 1 1 1 . . . Recycling Units 2 | . 1 . 1 . . . . . . . . . . . . . . . . . . . . . . Scanalyzers 5 | . . . 1 . . . . . . . . . . . . . . . . . 1 . 1 2 . Garrison Access 3 | . . . . . . . . . . . . . . . . . . . . 1 1 . 1 . . Total Hacks 244 | . 18 . 52 . 1 . 11 5 . 5 . 20 17 2 . 10 3 . . 7 26 6 26 35 . Successful 137 | . 12 . 33 . 1 . 5 2 . 2 . 12 10 1 . 3 1 . . 4 13 3 15 20 . Failed 105 | . 5 . 19 . . . 6 3 . 3 . 8 7 1 . 7 2 . . 3 13 3 11 14 . Catastrophic 14 | . . . 1 . . . . . . . . 2 1 . . . 1 . . 2 2 1 . 4 . Database Lockouts 2 | . 1 . . . . . . . . . . . . . . . . . . . . . . 1 . Manual 93 | . 16 . 23 . . . 6 3 . . . 9 3 . . 1 3 . . 2 9 3 8 7 . Terminals 166 | . 15 . 33 . . . 7 5 . 5 . 10 15 . . . 3 . . 4 19 5 16 29 . Fabricators 7 | . . . . . . . . . . . . 4 . . . 2 . . . . 1 . . . . Repair Stations 43 | . 2 . 13 . . . 4 . . . . 6 2 2 . 8 . . . 2 3 1 . . . Recycling Units 2 | . 1 . 1 . . . . . . . . . . . . . . . . . . . . . . Scanalyzers 19 | . . . 5 . . . . . . . . . . . . . . . . . 2 . 6 6 . Garrison Access 6 | . . . . . . . . . . . . . . . . . . . . 1 1 . 4 . . Terminal Hacks 60 | . 5 . 12 . 1 . . 1 . 2 . 1 8 . . . . . . 1 6 1 8 14 . Record 6 | . . . . . 1 . . . . . . . . . . . . . . . 1 . 3 1 . Part Schematic 1 | . . . . . . . . . . 1 . . . . . . . . . . . . . . . Robot Analysis 8 | . 3 . 3 . . . . . . . . . . . . . . . . . 1 . . 1 . Prototype ID Bank 5 | . . . 4 . . . . 1 . . . . . . . . . . . . . . . . . Open Door 10 | . . . . . . . . . . . . 1 5 . . . . . . . . . . 4 . Open DSF 1 | . . . . . . . . . . 1 . . . . . . . . . . . . . . . Level Access Points 1 | . . . . . . . . . . . . . . . . . . . . . . . 1 . . Branch Access Points 5 | . . . 1 . . . . . . . . . . . . . . . . 1 1 1 . 1 . Emergency Access Points 1 | . . . . . . . . . . . . . . . . . . . . . . . . 1 . Terminal Index 1 | . . . . . . . . . . . . . 1 . . . . . . . . . . . . Alert Level 5 | . 1 . 1 . . . . . . . . . 1 . . . . . . . . . 1 1 . Unreport Threat 4 | . . . 1 . . . . . . . . . . . . . . . . . 1 . . 2 . Locate Traps 3 | . 1 . 1 . . . . . . . . . 1 . . . . . . . . . . . . Recall Extermination 1 | . . . . . . . . . . . . . . . . . . . . . . . . 1 . Recall Reinforcements 1 | . . . . . . . . . . . . . . . . . . . . . . . 1 . . Zone Layout 6 | . . . 1 . . . . . . . . . . . . . . . . . 2 . 2 1 . Activate Exoskeleton 1 | . . . . . . . . . . . . . . . . . . . . . . . . 1 . Fabricator Hacks 6 | . . . . . . . . . . . . 4 . . . 1 . . . . 1 . . . . Load Schematic 3 | . . . . . . . . . . . . 2 . . . 1 . . . . . . . . . Build 3 | . . . . . . . . . . . . 2 . . . . . . . . 1 . . . . Repair Station Hacks 26 | . 2 . 9 . . . 4 . . . . 5 2 1 . 1 . . . 1 1 . . . . Scan Component 16 | . 1 . 5 . . . 2 . . . . 3 1 1 . 1 . . . 1 1 . . . . Repair 10 | . 1 . 4 . . . 2 . . . . 2 1 . . . . . . . . . . . . Recycling Unit Hacks . | . . . . . . . . . . . . . . . . . . . . . . . . . . Scanalyzer 12 | . . . 5 . . . . . . . . . . . . . . . . . . . 4 3 . Insert Component 4 | . . . 1 . . . . . . . . . . . . . . . . . . . 1 2 . Analyze 1 | . . . 1 . . . . . . . . . . . . . . . . . . . . . . Retrieve Study 7 | . . . 3 . . . . . . . . . . . . . . . . . . . 3 1 . Garrison Access Hacks 3 | . . . . . . . . . . . . . . . . . . . . 1 1 . 1 . . Seal Access 3 | . . . . . . . . . . . . . . . . . . . . 1 1 . 1 . . Unauthorized Hacks 30 | . 5 . 7 . . . 1 1 . . . 2 . . . 1 1 . . 1 4 2 2 3 . Terminals 26 | . 4 . 6 . . . 1 1 . . . 2 . . . . 1 . . 1 4 1 2 3 . Assimilate 5 | . . . . . . . . . . . . . . . . . . . . . 2 1 2 . . Botnet 21 | . 4 . 6 . . . 1 1 . . . 2 . . . . 1 . . 1 2 . . 3 . Fabricators . | . . . . . . . . . . . . . . . . . . . . . . . . . . Repair Stations 2 | . . . . . . . . . . . . . . . . 1 . . . . . 1 . . . Patch 2 | . . . . . . . . . . . . . . . . 1 . . . . . 1 . . . Recycling Units 2 | . 1 . 1 . . . . . . . . . . . . . . . . . . . . . . Tunnel 2 | . 1 . 1 . . . . . . . . . . . . . . . . . . . . . . Scanalyzers . | . . . . . . . . . . . . . . . . . . . . . . . . . . Garrison Access . | . . . . . . . . . . . . . . . . . . . . . . . . . . Data Cores Recovered 1 | . . . . . . . . . . . . . 1 . . . . . . . . . . . . Used . | . . . . . . . . . . . . . . . . . . . . . . . . . . Hacking Detections 67 | . 4 . 9 . . . 4 2 . 1 . 6 7 1 . 3 1 . . 3 11 2 5 8 . Full Trace Events 2 | . . . . . . . . . . . . . . . . . 1 . . . . 1 . . . Feedback Events . | . . . . . . . . . . . . . . . . . . . . . . . . . . Feedback Blocked . | . . . . . . . . . . . . . . . . . . . . . . . . . . Robot Schematics Acquired 2 | . . . . . . . . . . . . . . . . . . . . . . . . 2 . Robots Built . | . . . . . . . . . . . . . . . . . . . . . . . . . . Authchips . | . . . . . . . . . . . . . . . . . . . . . . . . . . Time . | . . . . . . . . . . . . . . . . . . . . . . . . . . Total Robot Build Rating . | . . . . . . . . . . . . . . . . . . . . . . . . . . Part Schematics Acquired 10 | . . . 1 . . . . . . 1 . . . . . . . . . . . . . 8 . Parts Built 3 | . . . . . . . . . . . . 2 . . . . . . . . 1 . . . . Authchips 2 | . . . . . . . . . . . . 2 . . . . . . . . . . . . . Time 208 | . . . . . . . . . . . . 134 . . . . . . . . 74 . . . . Total Part Build Rating 17 | . . . . . . . . . . . . 8 . . . . . . . . 9 . . . . Part Studies Acquired 7 | . . . 3 . . . . . . . . . . . . . . . . . . . 3 1 . Parts Repaired 10 | . 1 . 4 . . . 2 . . . . 2 1 . . . . . . . . . . . . Time 320 | . 26 . 148 . . . 70 . . . . 38 38 . . . . . . . . . . . . Parts Recycled . | . . . . . . . . . . . . . . . . . . . . . . . . . . Recycled Matter . | . . . . . . . . . . . . . . . . . . . . . . . . . . Retrieved Matter . | . . . . . . . . . . . . . . . . . . . . . . . . . . Retrieved Components . | . . . . . . . . . . . . . . . . . . . . . . . . . . Parts Scanalyzed 1 | . . . 1 . . . . . . . . . . . . . . . . . . . . . . Part Schematics Acquired 1 | . . . 1 . . . . . . . . . . . . . . . . . . . . . . Parts Damaged . | . . . . . . . . . . . . . . . . . . . . . . . . . . Bothacking | -11 -10 -10 -9 -9 -9 -8 -8 -7 -7 -7 -7 -6 -6 -5 -5 -5 -4 -4 -4 -3 -3 -2 -2 -2 -1 ------------ Run | Yrd Mat Min Mat Min Exi Min Mat Fac Was Fac DSF Fac Ext Fac Was Fac Fac Upp Upp Res Tes Res Qua Sec Acc Used RIF Installer . | . . . . . . . . . . . . . . . . . . . . . . . . . . Robots Hacked . | . . . . . . . . . . . . . . . . . . . . . . . . . . Non-combat . | . . . . . . . . . . . . . . . . . . . . . . . . . . Combat . | . . . . . . . . . . . . . . . . . . . . . . . . . . Robot Hacks Applied . | . . . . . . . . . . . . . . . . . . . . . . . . . . Relay Couplers Released . | . . . . . . . . . . . . . . . . . . . . . . . . . . Fabnet Peak Effective % . | . . . . . . . . . . . . . . . . . . . . . . . . . . Robots Rewired 16 | . . . . . . . . . . . . . 16 . . . . . . . . . . . . Allies Hacked . | . . . . . . . . . . . . . . . . . . . . . . . . . . Hacks Repelled . | . . . . . . . . . . . . . . . . . . . . . . . . . . Allies | -11 -10 -10 -9 -9 -9 -8 -8 -7 -7 -7 -7 -6 -6 -5 -5 -5 -4 -4 -4 -3 -3 -2 -2 -2 -1 -------- Run | Yrd Mat Min Mat Min Exi Min Mat Fac Was Fac DSF Fac Ext Fac Was Fac Fac Upp Upp Res Tes Res Qua Sec Acc Total Allies 49 | . . . . 1 . . . . . . . . 24 . . . . . . . 2 1 . . 21 Largest Group 11 | . . . . 1 . . . . . . . . 11 5 . . . . . . 1 1 . . 6 Highest-Rated Group 375 | . . . . 31 . . . . . . . . 375 286 . . . . . . 26 10 . . 84 Highest-Rated Ally 159 | . . . . 31 . . . . . . . . 159 152 . . . . . . 26 10 . . 15 Total Orders 1 | . . . . . . . . . . . . . . 1 . . . . . . . . . . . STAY 1 | . . . . . . . . . . . . . . 1 . . . . . . . . . . . Ally Attacks 197 | . . . . 14 . . . . . . . . 161 19 . . . . . . . . . . 3 Total Damage 4450 | . . . . 193 . . . . . . . . 3870 248 . . . . . . . . . . 139 Kills 29 | . . . . 5 . . . . . . . . 23 . . . . . . . . . . . 1 Allies Corrupted . | . . . . . . . . . . . . . . . . . . . . . . . . . . Allies Melted 2 | . . . . . . . . . . . . . 2 . . . . . . . . . . . . Intel | -11 -10 -10 -9 -9 -9 -8 -8 -7 -7 -7 -7 -6 -6 -5 -5 -5 -4 -4 -4 -3 -3 -2 -2 -2 -1 ------- Run | Yrd Mat Min Mat Min Exi Min Mat Fac Was Fac DSF Fac Ext Fac Was Fac Fac Upp Upp Res Tes Res Qua Sec Acc Active Infowar (turns) 3279 | 18 13 . . . . . 68 85 70 34 42 359 766 182 14 55 33 93 12 141 567 256 163 308 . Optics 719 | . . . . . . . . . . . . . . . . . . . . . . 248 163 308 . Sensors 3138 | . . . . . . . . 85 70 34 42 359 766 182 14 55 33 93 12 141 526 256 162 308 . Structural 68 | . . . . . . . 68 . . . . . . . . . . . . . . . . . . Seismic 31 | 18 13 . . . . . . . . . . . . . . . . . . . . . . . . Jamming 1059 | . . . . . . . . . . . . . . . . . . . . 138 567 256 98 . . ECM 90 | . . . . . . . . . . . . . . . . . . . . . . . 56 34 . Robot Analysis Total 8 | . 3 . 3 . . . . . . . . . . . . . . . . . 1 . . 1 . Derelict Logs Recovered 1 | . . . . 1 . . . . . . . . . . . . . . . . . . . . . Drone Launches . | . . . . . . . . . . . . . . . . . . . . . . . . . . Drone Recoveries . | . . . . . . . . . . . . . . . . . . . . . . . . . . Exploration | -11 -10 -10 -9 -9 -9 -8 -8 -7 -7 -7 -7 -6 -6 -5 -5 -5 -4 -4 -4 -3 -3 -2 -2 -2 -1 ------------- Run | Yrd Mat Min Mat Min Exi Min Mat Fac Was Fac DSF Fac Ext Fac Was Fac Fac Upp Upp Res Tes Res Qua Sec Acc Turns Passed 10575 | 197 996 45 2150 923 162 454 836 206 70 34 42 541 1145 182 14 55 33 93 12 141 567 256 163 927 331 Spaces Moved 12809 | 88 576 11 1146 715 136 294 484 225 160 108 77 1006 1228 419 80 175 98 355 54 391 1151 722 501 2073 536 Core . | . . . . . . . . . . . . . . . . . . . . . . . . . . Treads 338 | 88 185 . 55 3 . 3 4 . . . . . . . . . . . . . . . . . . Legs 1773 | . . . . . . . . . . . . . . . . . . . . . . . . 1237 536 Wheels 3187 | . 391 11 1091 712 136 291 480 75 . . . . . . . . . . . . . . . . . Hover . | . . . . . . . . . . . . . . . . . . . . . . . . . . Flight 7511 | . . . . . . . . 150 160 108 77 1006 1228 419 80 175 98 355 54 391 1151 722 501 836 . Fastest Speed 5 | 160 115 115 115 120 120 120 95 28 31 31 28 23 5 11 11 11 24 6 21 6 6 12 12 14 30 Average Speed 52 | 160 136 115 130 120 120 121 115 58 31 31 36 25 23 22 17 22 24 19 21 20 21 20 21 27 30 Slowest Speed 240 | 160 240 115 240 240 120 240 240 115 31 31 104 28 94 26 24 24 24 24 21 21 92 22 26 114 30 Overloaded Moves 575 | . . . . . . . . . . . . . 61 77 36 17 . 50 . 23 75 78 140 18 . Propulsion Burnouts 1 | . . . . . . . . . . . . . 1 . . . . . . . . . . . . Robots Hopped 41 | . . . . . . . . . . . . 5 6 1 4 3 . . . 2 15 2 . 3 . Potential Cave-ins 16 | . . . . . . . . . . . . . . . . . . . . . . . . 16 . Cave-ins Triggered 1 | . . . . . . . . . . . . . . . . . . . . . . . . 1 . Teleports 53 | . . . . . . . . . . . . . . . . . . . . . . . . 33 20 Exploration Rate (%) 46 | 5 90 7 87 92 53 63 42 6 93 4 86 27 87 11 81 7 3 58 8 14 83 31 57 93 16 Regions Visited 25 Branch Regions 10 Pre-discovered Areas 3 | . 1 . 1 . 1 . . . . . . . . . . . . . . . . . . . . Known Exits Taken 13 | . . . 1 . . . . . . 1 . 1 1 . . 1 1 1 1 1 1 1 1 1 . Unknown Exits Taken 7 | 1 1 1 . 1 1 1 1 . . . . . . . . . . . . . . . . . . Scrap Searched 3 | . . . . 1 . 2 . . . . . . . . . . . . . . . . . . . Spaces Dug 166 | . . . . . . . 2 1 . . 2 9 1 4 . 1 1 18 . 4 15 15 6 66 21 Terrain Destroyed 344 | . . . . . . 21 2 13 . . 2 9 1 4 . 1 1 34 . 4 18 15 6 116 97 Melee 68 | . . . . . . . 2 1 . . 2 9 1 4 . 1 1 1 . 4 15 15 6 6 . Projectile 150 | . . . . . . . . . . . . . . . . . . . . . 3 . . 65 82 AOE 121 | . . . . . . 21 . 12 . . . . . . . . . 33 . . . . . 40 15 Terrain Rammed . | . . . . . . . . . . . . . . . . . . . . . . . . . . Walls Destroyed . | . . . . . . . . . . . . . . . . . . . . . . . . . . Machines Disabled . | . . . . . . . . . . . . . . . . . . . . . . . . . . Actions | -11 -10 -10 -9 -9 -9 -8 -8 -7 -7 -7 -7 -6 -6 -5 -5 -5 -4 -4 -4 -3 -3 -2 -2 -2 -1 --------- Run | Yrd Mat Min Mat Min Exi Min Mat Fac Was Fac DSF Fac Ext Fac Was Fac Fac Upp Upp Res Tes Res Qua Sec Acc Total 15583 | 111 689 21 1627 744 135 345 682 283 179 109 85 1231 1992 488 75 182 102 367 53 438 1382 795 533 2292 643 Wait 1573 | . 44 . 298 3 . 14 98 15 19 . . 155 514 48 . 1 . 5 . 32 159 51 7 52 58 Move 12709 | 87 575 10 1145 714 135 293 483 225 159 107 76 995 1215 417 73 168 97 354 53 388 1122 717 500 2066 535 Hop 35 | . . . . . . . . . . . . 5 6 1 2 3 . . . . 13 2 . 3 . Pick Up 84 | 1 6 . 28 1 . 2 8 2 . 1 2 5 4 3 . 1 1 . . 1 4 1 1 12 . Fast Attach 72 | . 2 . 4 . . 3 8 1 . . . 7 4 2 . 1 . 1 . 3 10 1 4 15 6 Attach 39 | 1 . . 4 . . . 1 7 . . . 2 3 2 . . 1 . . 1 . 1 1 14 1 Detach 16 | . 1 . . . . . . 2 . . . 2 3 1 . . . . . 1 . 1 . 2 3 Swap 140 | 2 6 . 29 4 . 3 15 8 1 . 2 14 11 . . 1 . 2 . 2 18 3 2 17 . Drop 135 | 3 8 . 29 4 . 4 16 11 . 1 2 10 5 1 . 3 . . . 2 17 . 5 12 2 Fire 410 | 17 47 11 89 18 . 26 50 11 . . . 11 11 . . . . 2 . . 11 . . 68 38 Melee 176 | . . . . . . . 3 1 . . 3 25 41 13 . 4 3 3 . 8 28 18 13 13 . Ram 1 | . . . 1 . . . . . . . . . . . . . . . . . . . . . . Kick 3 | . . . . . . . . . . . . . . . . . . . . . . . . 3 . Crush . | . . . . . . . . . . . . . . . . . . . . . . . . . . Escape Stasis 97 | . . . . . . . . . . . . . 82 . . . . . . . . . . 15 . Rewire 93 | . . . . . . . . . . . . . 93 . . . . . . . . . . . . Trap . | . . . . . . . . . . . . . . . . . . . . . . . . . . Miscellaneous . | . . . . . . . . . . . . . . . . . . . . . . . . . . Route ------- -11/Scrapyard -10/Materials (discovered 3 exits: *Mat x2 / [*Min]) -10/Mines -9/Materials (discovered 6 exits: *Mat x2 / *Min x2 / *Sto x2) -9/Mines (discovered 2 exits: *Mat / *Exi) -9/Exiles -8/Mines -8/Materials -7/Factory -7/Waste -7/Factory -7/DSF -6/Factory (discovered 2 exits: [*Low] / *Ext) -6/Extension (discovered 2 exits: *Fac / [*Cet]) -5/Factory -5/Waste -5/Factory (discovered 2 exits: *Fac / *Upp) -4/Factory -4/Upper Caves -4/Upper Caves -3/Research (discovered 2 exits: *Tes x2) -3/Testing -2/Research (discovered 2 exits: *Qua x2) -2/Quarantine (discovered 3 exits: *Acc / *Sec / *Frg) -2/Section 7 -1/Access To Fleet Rendezvous History --------- Turn | Location | Event 24 | -11/Scrapyard | Discovered new exit (range 3) 198 | -11/Scrapyard | Entered Materials 310 | -10/Materials | Build established: Mutant 464 | -10/Materials | Central database locked down 529 | -10/Materials | Discovered new exit (range 3) 698 | -10/Materials | Derelicts attacked the area 997 | -10/Materials | Repaired Lgt. Armor Plating 1093 | -10/Materials | Discovered new exit (range 5) 1181 | -10/Materials | Discovered new exit (range 7) 1194 | -10/Materials | Entered Mines 1218 | -10/Mines | Discovered new exit (range 10) 1239 | -10/Mines | Entered Materials 1239 | -9/Materials | Evolved 2 slots: Propulsion x1, Utility x1 1290 | -9/Materials | Repaired Lgt. Armor Plating 1684 | -9/Materials | Build established: Scavenger-Mutant 1806 | -9/Materials | Discovered new exit (range 5) 1907 | -9/Materials | Discovered new exit (range 6) 2206 | -9/Materials | Discovered new exit (range 10) 2276 | -9/Materials | Discovered new exit (range 16) 2424 | -9/Materials | Build established: Mutant 2856 | -9/Materials | Discovered new exit (range 7) 2961 | -9/Materials | Repaired Com. Wheel+ 2994 | -9/Materials | Repaired Hrd. Light Armor Plating 3061 | -9/Materials | Repaired Broken Imp. Assault Rifle 3070 | -9/Materials | Discovered new exit (range 8) 3132 | -9/Materials | Identified exit to Mines 3132 | -9/Materials | Identified exit to Storage 3265 | -9/Materials | Build established: Scavenger-Mutant 3389 | -9/Materials | Entered Mines 3403 | -9/Mines | Learned Materials emergency access door positions 3485 | -9/Mines | Discovered new exit (range 6) 3604 | -9/Mines | Received a Mining Laser from a helpful Derelict 4252 | -9/Mines | Received a Rocket Launcher from a helpful Derelict 4306 | -9/Mines | Deemed a non-threat by the Exiles lab entrance 4307 | -9/Mines | Discovered new exit (range 5) 4312 | -9/Mines | Entered Exiles 4342 | -9/Exiles | Met 8R-AWN 4362 | -9/Exiles | Met EX-HEX 4395 | -9/Exiles | Met EX-BIN 4420 | -9/Exiles | Met EX-DEC 4425 | -9/Exiles | Learned location of Zion (-7) 4460 | -9/Exiles | Discovered new exit (range 14) 4474 | -9/Exiles | Entered Mines 4477 | -8/Mines | Core integrity fell below 50% 4890 | -8/Mines | Discovered new exit (range 15) 4928 | -8/Mines | Entered Materials 4928 | -8/Materials | Evolved 2 slots: Propulsion x1, Utility x1 5359 | -8/Materials | Repaired Hrd. Light Armor Plating 5398 | -8/Materials | Repaired Lgt. Nuclear Core 5739 | -8/Materials | Discovered new exit (range 8) 5764 | -8/Materials | Entered Factory 5764 | -7/Factory | Evolved 2 slots: Propulsion x1, Utility x1 5776 | -7/Factory | Build established: Mutant 5963 | -7/Factory | Garrison activated, responded to threat 5970 | -7/Factory | Sucked down chute 5970 | -7/Factory | Entered Waste 5984 | -7/Waste | Spotted C-40 Crusher 5986 | -7/Waste | Spotted C-40 Crusher 6004 | -7/Waste | Spotted C-40 Crusher 6024 | -7/Waste | Spotted C-40 Crusher 6025 | -7/Waste | Spotted C-40 Crusher 6030 | -7/Waste | Spotted C-40 Crusher 6030 | -7/Waste | Discovered new exit (range 15) 6040 | -7/Waste | Identified exit to Factory 6040 | -7/Waste | Entered Factory 6074 | -7/Factory | Identified exit to DSF 6074 | -7/Factory | Entered DSF 6099 | -7/DSF | Additional patrols routed to DSF 6112 | -7/DSF | Discovered new exit (range 14) 6116 | -7/DSF | Identified exit to Factory 6116 | -7/DSF | Entered Factory 6116 | -6/Factory | Evolved 2 slots: Utility x2 6164 | -6/Factory | Discovered new exit (range 16) 6181 | -6/Factory | Build established: Hacker-Sprinter 6303 | -6/Factory | Repaired Minigun 6323 | -6/Factory | Repaired Minigun 6449 | -6/Factory | Fabricated Cld. VTOL Module (x1) 6519 | -6/Factory | Fabricated Cld. VTOL Module (x1) 6562 | -6/Factory | Discovered new exit (range 6) 6577 | -6/Factory | Spotted B-75 Beast 6657 | -6/Factory | Identified exit to Extension 6657 | -6/Factory | Entered Extension 6738 | -6/Extension | Repaired Minigun 6797 | -6/Extension | Rescued a captive Derelict 6799 | -6/Extension | Rescued a captive Derelict 6900 | -6/Extension | Rescued a captive Derelict 6953 | -6/Extension | Lost 4 allies 7363 | -6/Extension | Lost 3 allies 7384 | -6/Extension | Spotted B-75 Beast 7431 | -6/Extension | Allies destroyed B-75 Beast 7483 | -6/Extension | Spotted B-75 Beast 7520 | -6/Extension | Rescued A7 7527 | -6/Extension | Lost 4 allies 7545 | -6/Extension | Rescued a captive Derelict 7549 | -6/Extension | Rescued a captive Derelict 7621 | -6/Extension | Rescued a captive Derelict 7622 | -6/Extension | Rescued a captive Derelict 7632 | -6/Extension | Energy Cycler disabled 7754 | -6/Extension | Discovered new exit (range 10) 7763 | -6/Extension | Discovered new exit (range 6) 7787 | -6/Extension | Identified exit to Factory 7793 | -6/Extension | Found Prototype Protection 7793 | -6/Extension | Identified Med. Regenerative Plating 7802 | -6/Extension | Entered Factory 7802 | -5/Factory | Accompanied by 5 allies (A7) 7802 | -5/Factory | Evolved 2 slots: Propulsion x1, Utility x1 7984 | -5/Factory | Sucked down chute 7984 | -5/Factory | Entered Waste 7987 | -5/Waste | Spotted C-40 Crusher 7990 | -5/Waste | Spotted C-40 Crusher 7992 | -5/Waste | Spotted C-40 Crusher 7993 | -5/Waste | Spotted C-40 Crusher 7995 | -5/Waste | Spotted C-40 Crusher 7997 | -5/Waste | Spotted C-40 Crusher 7997 | -5/Waste | Discovered new exit (range 10) 7998 | -5/Waste | Identified exit to Factory 7998 | -5/Waste | Entered Factory 8047 | -5/Factory | Discovered new exit (range 15) 8051 | -5/Factory | Discovered new exit (range 15) 8051 | -5/Factory | Identified exit to Upper Caves 8053 | -5/Factory | Identified exit to Factory 8053 | -5/Factory | Entered another Factory area 8053 | -4/Factory | Evolved 2 slots: Power x1, Propulsion x1 8067 | -4/Factory | Discovered new exit (range 15) 8071 | -4/Factory | Identified exit to Upper Caves 8086 | -4/Factory | Entered Upper Caves 8178 | -4/Upper Caves | Discovered new exit (range 5) 8178 | -4/Upper Caves | Identified exit to Upper Caves 8179 | -4/Upper Caves | Entered another Upper Caves area 8188 | -4/Upper Caves | Discovered new exit (range 7) 8189 | -4/Upper Caves | Identified exit to Research 8191 | -4/Upper Caves | Entered Research 8191 | -3/Research | Evolved 2 slots: Utility x2 8294 | -3/Research | Identified exit to Testing 8332 | -3/Research | Entered Testing 8409 | -3/Testing | Fabricated Exp. Actuator Array (x1) 8549 | -3/Testing | Found Prototype Launcher 8549 | -3/Testing | Identified Z-bomb Delivery System 8616 | -3/Testing | Found Prototype Ballistic Gun 8616 | -3/Testing | Identified Hyp. Multirail 8732 | -3/Testing | Watched by a mysterious "MATRIX" hacker. 8747 | -3/Testing | Found Prototype Energy Cannon 8747 | -3/Testing | Identified Disintegrator 8777 | -3/Testing | Found Prototype Energy Cannon 8777 | -3/Testing | Identified Potential Cannon 8859 | -3/Testing | Discovered new exit (range 13) 8899 | -3/Testing | Identified exit to Research 8899 | -3/Testing | Entered Research 8899 | -2/Research | Evolved 2 slots: Propulsion x1, Utility x1 8978 | -2/Research | Spotted B-90 Cyclops 8985 | -2/Research | Spotted B-90 Cyclops 9079 | -2/Research | Identified exit to Quarantine 9155 | -2/Research | Entered Quarantine 9162 | -2/Quarantine | Found Alien Energy Cannon 9162 | -2/Quarantine | Identified Core Cannon 9189 | -2/Quarantine | Identified exit to Access 9218 | -2/Quarantine | Build established: Hacker-Ninja 9243 | -2/Quarantine | Found Alien Artifact 9258 | -2/Quarantine | Identified Subatomic Replicator 9295 | -2/Quarantine | Spotted Fortress 9311 | -2/Quarantine | Discovered new exit (range 5) 9311 | -2/Quarantine | Discovered new exit (range 6) 9316 | -2/Quarantine | Identified exit to Section 7 9317 | -2/Quarantine | Identified exit to Protoforge 9318 | -2/Quarantine | Entered Section 7 9329 | -2/Section 7 | Central database locked down 9355 | -2/Section 7 | Found Alien Artifact 9388 | -2/Section 7 | Identified Core Reset Matrix 9390 | -2/Section 7 | Used Subatomic Replicator to replicate Hyp. Multirail 9446 | -2/Section 7 | Found Alien Artifact 9501 | -2/Section 7 | Identified Integrated Mediator 9501 | -2/Section 7 | Installed Integrated Mediator, increased core attachment efficiency 9513 | -2/Section 7 | Found Alien Artifact 9531 | -2/Section 7 | Found Alien Artifact 9531 | -2/Section 7 | Identified Integrated Dissipator 9531 | -2/Section 7 | Installed Integrated Dissipator, increased core heat dissipation (+20) 9534 | -2/Section 7 | Identified Integrity Redistributor 9534 | -2/Section 7 | Used Integrity Redistributor, redistributed integrity from core (-27) 9535 | -2/Section 7 | Used Core Reset Matrix 9539 | -2/Section 7 | Detected hypermatrix surge 9539 | -2/Section 7 | Sensed 17 artifacts in vicinity 9553 | -2/Section 7 | Spotted B-90 Cyclops 9561 | -2/Section 7 | Spotted Alpha 7 9587 | -2/Section 7 | Found Terrabomb 9590 | -2/Section 7 | Found Hpw. Transdimensional Reconstructor 9599 | -2/Section 7 | Spotted Striker 9600 | -2/Section 7 | Spotted Striker 9626 | -2/Section 7 | Integrated with Sigix Exoskeleton 9635 | -2/Section 7 | Spotted Executioner 9637 | -2/Section 7 | Scanned by Researcher 9638 | -2/Section 7 | Intercept squad dispatched 9659 | -2/Section 7 | Warped through subspace 9668 | -2/Section 7 | Found Integrated Dissipator 9668 | -2/Section 7 | Installed Integrated Dissipator, increased core heat dissipation (+20) 9678 | -2/Section 7 | Used Terrabomb 9681 | -2/Section 7 | Found LRC Energy Well 9681 | -2/Section 7 | Installed LRC Energy Well, increased energy storage capacity (+250) 9684 | -2/Section 7 | Found LRC Armor 9684 | -2/Section 7 | Installed LRC Armor, increased core integrity (+250) 9687 | -2/Section 7 | Found LRC Matter Compressor 9687 | -2/Section 7 | Installed LRC Matter Compressor, increased matter storage capacity (+125) 9720 | -2/Section 7 | Spotted B-99 Colossus 9736 | -2/Section 7 | Found Terrabomb 9740 | -2/Section 7 | Found Transdimensional Reconstructor 9759 | -2/Section 7 | Found Transdimensional Reconstructor 9766 | -2/Section 7 | Spotted Alpha 7 9769 | -2/Section 7 | Spotted S7 Guard 9772 | -2/Section 7 | Spotted Executioner 9772 | -2/Section 7 | Spotted Executioner 9822 | -2/Section 7 | Found Core Regenerator 9867 | -2/Section 7 | Spotted Tracker 9867 | -2/Section 7 | Spotted Tracker 9868 | -2/Section 7 | Spotted S7 Guard 9873 | -2/Section 7 | Found Navigation Efficiency Matrix 9873 | -2/Section 7 | Installed Navigation Efficiency Matrix, process failed with unexpected side effects 9878 | -2/Section 7 | Sigix Exoskeleton integrity reduced to 80% 9888 | -2/Section 7 | Destroyed Tracker 9906 | -2/Section 7 | Found Integrated Dissipator 9906 | -2/Section 7 | Installed Integrated Dissipator, increased core heat dissipation (+20) 9927 | -2/Section 7 | Build established: Alien-Sigix 9935 | -2/Section 7 | Intercept squad dispatched 9956 | -2/Section 7 | Spotted Tracker 9961 | -2/Section 7 | Spotted Tracker 9964 | -2/Section 7 | Destroyed Tracker 9969 | -2/Section 7 | Destroyed Tracker 10008 | -2/Section 7 | Warped through subspace 10107 | -2/Section 7 | Found Sigix Sheargun 10117 | -2/Section 7 | Spotted Executioner 10142 | -2/Section 7 | Spotted Striker 10142 | -2/Section 7 | Spotted Striker 10150 | -2/Section 7 | Warped through subspace 10162 | -2/Section 7 | Found Terrabomb 10172 | -2/Section 7 | Spotted Striker 10173 | -2/Section 7 | Core integrity fell below 50% 10178 | -2/Section 7 | Sigix Exoskeleton integrity reduced to 60% 10183 | -2/Section 7 | Spotted Investigator 10189 | -2/Section 7 | Destroyed Investigator 10194 | -2/Section 7 | Used Core Regenerator, restored core integrity (+425) 10200 | -2/Section 7 | Used Terrabomb 10209 | -2/Section 7 | Spotted Investigator 10212 | -2/Section 7 | Destroyed Investigator 10217 | -2/Section 7 | Sigix Exoskeleton integrity reduced to 40% 10231 | -2/Section 7 | Used Terrabomb 10233 | -2/Section 7 | Discovered exit to Access (range 16) 10235 | -2/Section 7 | Crushed by falling debris 10242 | -2/Section 7 | Intercept squad dispatched 10245 | -2/Section 7 | Entered Access 10245 | -1/Access | Evolved 2 slots: Utility x1, Weapon x1 10250 | -1/Access | Emitted hypermatrix ping 10255 | -1/Access | Assembled emerged from beneath the floor 10376 | -1/Access | Assembled emerged from beneath the floor 10393 | -1/Access | Discovered new exit (range 17) 10438 | -1/Access | Assembled emerged from beneath the floor 10497 | -1/Access | Spotted B-99 Colossus 10506 | -1/Access | Spotted B-99 Colossus 10557 | -1/Access | Energy Cycler disabled 10576 | *** | Heading to fleet! Last Messages --------------- additional patrols. 10557_ Energy Cycler explodes. 10559_ Quantum Shear penetrates P-80 Master. 10559_ P-80 Master destroyed. 10559_ Switching to secondary target: P-80 Master. 10559_ Quantum Shear penetrates P-80 Master. 10559_ Destroyed Unknown Hover Unit. 10561_ Quantum Shear penetrates P-80 Master. 10561_ P-80 Master Unknown Hover Unit severed. 10561_ Quantum Shear penetrates P-80 Master. 10561_ P-80 Master destroyed. 10569_ Navigation matrix triggers involuntary quantum shift. 10571_ K-01 Serf cleans the Terminal. 10575_ The Access Shell folds into the floor. 10576_ ALERT: Heavy assault forces dispatched. [Achievement: Winner's Signature] [Achievement: On My Own Terms] Map ----- +----------------------------------------------------+ | ???????????????? # ########### " #### | | ??????????? ?? ]# ########### """" #### | | ?????? "" ###### ########### """"" #### | | ??? """""" ###### ########### """"" #### | | ?? """""" ######! ########### """" ! #### | | # "" ###### ########### " #### | | # "" #################### #### | | # #################### #### | | # #################### #### | | # #################### #### | | ########+###########################+##+#####"#### | | k R | | R k | | ###############/##### ""#####+########"#### | | ###### ### ""##### ## | | ###### ### ""##### ## | | ###### ### T##### "" ""## | | ###### # # ""##### "" ""## | | ###### # # ""##### """" Y"## | | ###### #;# ""##### """" ""## | | ###### #; #### """" ""## | | ###### #"# ##### """" ## | | ###### % ### ##### """" ## | | ######%== hcc ### ##### "" ## | | ######=%! c= =### ##### ## | | ######] * # # X" ##### ## | | #######%####c######## "" ############+###### | | #######=###h######## ############ ###### | | ######## ## ######## ############ ###### | | ######### # ######## ############ ###### | | ###########+########""""""""""############+###### | | ## #######""""""""""### #### | | # #######""""""""""### #### | | # #######""""""""""### #### | | # ####### ### #### | | #! ####### BB BB ### #### | | # ####### BB BB ### #### | | # ####### # #### | | # + ### % ### #### | | # ### ### ### ## # | | # ### ### % ### # ## | | # ### ###### ###### "### | | # ### "%" ###### #### | | ######+########## " #####""### #####"/#### | | ### # | | ### # | | ### + | | ### # | | ### ######""#""#"# """## # | | ### # # " ### # | +----------------------------------------------------+ Best States ------------- Heat Dissipation 208 Energy Generation 67 Energy Capacity 690 Matter Stores 425 Matter Capacity 425 Sight Range 20 Robot Scan Range 16 Terrain Scan Density 10 ECM Strength 2 Jamming Range 14 Power Amplification 30 Armor Coverage 300 Resistance: KI 50 Resistance: TH 50 Resistance: EX 50 Resistance: EM 50 Resistance: I 50 Resistance: S 50 Resistance: P 50 Core Shielding 20 Evasion (%) 81 Targeting Accuracy 8 Melee Accuracy 11 Core Analysis 6 Recoil Reduction 3 Offensive Hacking 24 Defensive Hacking 24 Authchip Count 2 Item Schematics ----------------- None Robot Schematics ------------------ None Fabricated ------------ Cld. VTOL Module | x1 | -6/Factory | Authchip Cld. VTOL Module | x1 | -6/Factory | Authchip Exp. Actuator Array | x1 | -3/Testing | Preloaded Repaired ---------- Lgt. Armor Plating | 32% | -10/Materials Lgt. Armor Plating | 10% | -9/Materials Com. Wheel | 26% | -9/Materials Hrd. Light Armor Plating | 52% | -9/Materials Imp. Assault Rifle | 41% | -9/Materials | Broken Hrd. Light Armor Plating | 17% | -8/Materials Lgt. Nuclear Core | 58% | -8/Materials Minigun | 80% | -6/Factory Minigun | 85% | -6/Factory Minigun | 60% | -6/Extension Studied --------- None Alien Tech Used ----------------- Core Cannon Subatomic Replicator Integrated Mediator Integrated Dissipator Integrity Redistributor Core Reset Matrix Sigix Exoskeleton Sigix Sheargun High-powered Transdimensional Reconstructor Terrabomb LRC Energy Well LRC Armor LRC Matter Compressor Navigation Efficiency Matrix Transdimensional Reconstructor Core Regenerator Achievements -------------- Artifact Hunter Integration Complete Nope On My Own Terms Sacrificial Teamwork Signature Confirmed Watch This! Winner's Signature Challenges ------------ None Game ------ Seed MicrowarpSpreadLayer Manual? 0 Play Time 03:31:09 Cumulative 199.1 hours Start 2026.04.21 @ 11:42:05 End 2026.04.21 @ 15:43:08 Sessions 1 Manual Loads 0 Difficulty Rogue Special Mode None Game No. 119 Rogue 119 Adventurer 0 Explorer 0 Win Type 2 Total 7 Types 3/0/2/1/0/0/0/1/0/0 Lore% 64 Gallery% 58 Achievement% 52 Wizard Run 0 Options --------- Layout 2 ASCII 0 Keyboard 1 Movement Arrows Keybinds 0 Fullscreen 2 Font 24/Terminus Map View 50x44 Zoom Use 0% Tactical HUD 1 Map Filters NONE Filters NONE Steam 1 RUN: 99c7d7ec-66b7-4a98-9650-ba711649c386